[Event "Titled Tuesday Blitz August 16 Late 2022"]
[White "Shapiro, Daniel"]
[Black "Goncalves, Davi Sulzbacher"]
[WhiteFideId "2001780"]
[BlackFideId "2154510"]
[WhiteElo "2284"]
[BlackElo "2107"]
[Result "0-1"]
[Round "06"]
[TimeControl "180+1"]
[Date "2022.08.18"]
[WhiteClock "0:00:00"]
[BlackClock "0:00:00"]

1. d4 {[%clk 0:00:00]}  g6 {[%clk 0:00:00]} 2. e4 {[%clk 0:00:00]}  Bg7 {[%clk 0:00:00]} 3. Nc3 {[%clk 0:00:00]}  b6 {[%clk 0:00:00]} 4. Be3 {[%clk 0:00:00]}  Bb7 {[%clk 0:00:00]} 5. f3 {[%clk 0:00:00]}  e6 {[%clk 0:00:00]} 6. Qd2 {[%clk 0:00:00]}  d6 {[%clk 0:00:00]} 7. O-O-O {[%clk 0:00:00]}  Nd7 {[%clk 0:00:00]} 8. h4 {[%clk 0:00:00]}  h6 {[%clk 0:00:00]} 9. g4 {[%clk 0:00:00]}  h5 {[%clk 0:00:00]} 10. Qf2 {[%clk 0:00:00]}  hxg4 {[%clk 0:00:00]} 11. fxg4 {[%clk 0:00:00]}  Ngf6 {[%clk 0:00:00]} 12. Qg2 {[%clk 0:00:00]}  Qe7 {[%clk 0:00:00]} 13. Bd3 {[%clk 0:00:00]}  O-O-O {[%clk 0:00:00]} 14. Nf3 {[%clk 0:00:00]}  Kb8 {[%clk 0:00:00]} 15. Rdf1 {[%clk 0:00:00]}  Rdf8 {[%clk 0:00:00]} 16. Ng5 {[%clk 0:00:00]}  Nh7 {[%clk 0:00:00]} 17. Qg3 {[%clk 0:00:00]}  Nxg5 {[%clk 0:00:00]} 18. Bxg5 {[%clk 0:00:00]}  Qe8 {[%clk 0:00:00]} 19. Be3 {[%clk 0:00:00]}  e5 {[%clk 0:00:00]} 20. d5 {[%clk 0:00:00]}  Qe7 {[%clk 0:00:00]} 21. g5 {[%clk 0:00:00]}  f6 {[%clk 0:00:00]} 22. gxf6 {[%clk 0:00:00]}  Bxf6 {[%clk 0:00:00]} 23. Bg5 {[%clk 0:00:00]}  Bxg5+ {[%clk 0:00:00]} 24. hxg5 {[%clk 0:00:00]}  Rxf1+ {[%clk 0:00:00]} 25. Rxf1 {[%clk 0:00:00]}  Rh5 {[%clk 0:00:00]} 26. Rg1 {[%clk 0:00:00]}  a6 {[%clk 0:00:00]} 27. a4 {[%clk 0:00:00]}  Nc5 {[%clk 0:00:00]} 28. Be2 {[%clk 0:00:00]}  Rh7 {[%clk 0:00:00]} 29. Rf1 {[%clk 0:00:00]}  Ka7 {[%clk 0:00:00]} 30. Rf6 {[%clk 0:00:00]}  Rh1+ {[%clk 0:00:00]} 31. Kd2 {[%clk 0:00:00]}  Qe8 {[%clk 0:00:00]} 32. Qf3 {[%clk 0:00:00]}  Rh8 {[%clk 0:00:00]} 33. b3 {[%clk 0:00:00]}  Bc8 {[%clk 0:00:00]} 34. Nd1 {[%clk 0:00:00]}  Rh3 {[%clk 0:00:00]} 35. Qg2 {[%clk 0:00:00]}  Qh8 {[%clk 0:00:00]} 36. Nf2 {[%clk 0:00:00]}  Rh2 {[%clk 0:00:00]} 37. Qf3 {[%clk 0:00:00]}  Qh4 {[%clk 0:00:00]} 38. Nd3 {[%clk 0:00:00]}  Nxe4+ {[%clk 0:00:00]} 39. Kc1 {[%clk 0:00:00]}  Nc3 {[%clk 0:00:00]} 40. Bf1 {[%clk 0:00:00]}  Qd4 {[%clk 0:00:00]} 41. Rxg6 {[%clk 0:00:00]}  e4 {[%clk 0:00:00]} 42. Qf4 {[%clk 0:00:00]}  Rh1 {[%clk 0:00:00]} 43. Kb2 {[%clk 0:00:00]}  Nxa4+ {[%clk 0:00:00]} 0-1


[Site "https://www.chess.com"]

[Event "Titled Tuesday Blitz August 16 Late 2022"]
[White "Silvestre, Christian"]
[Black "Uskov, Artem"]
[WhiteFideId "30956269"]
[BlackFideId "34254854"]
[WhiteElo "1942"]
[BlackElo "2335"]
[Result "0-1"]
[Round "06"]
[TimeControl "180+1"]
[Date "2022.08.18"]
[WhiteClock "0:00:00"]
[BlackClock "0:00:00"]

1. Nf3 {[%clk 0:00:00]}  Nf6 {[%clk 0:00:00]} 2. g3 {[%clk 0:00:00]}  g6 {[%clk 0:00:00]} 3. Bg2 {[%clk 0:00:00]}  Bg7 {[%clk 0:00:00]} 4. O-O {[%clk 0:00:00]}  O-O {[%clk 0:00:00]} 5. d3 {[%clk 0:00:00]}  d6 {[%clk 0:00:00]} 6. c4 {[%clk 0:00:00]}  c5 {[%clk 0:00:00]} 7. Nc3 {[%clk 0:00:00]}  Nbd7 {[%clk 0:00:00]} 8. Rb1 {[%clk 0:00:00]}  a6 {[%clk 0:00:00]} 9. a3 {[%clk 0:00:00]}  Ne8 {[%clk 0:00:00]} 10. Bd2 {[%clk 0:00:00]}  Nc7 {[%clk 0:00:00]} 11. b4 {[%clk 0:00:00]}  Rb8 {[%clk 0:00:00]} 12. b5 {[%clk 0:00:00]}  a5 {[%clk 0:00:00]} 13. a4 {[%clk 0:00:00]}  b6 {[%clk 0:00:00]} 14. Qb3 {[%clk 0:00:00]}  Bb7 {[%clk 0:00:00]} 15. e4 {[%clk 0:00:00]}  e6 {[%clk 0:00:00]} 16. Ne1 {[%clk 0:00:00]}  Nf6 {[%clk 0:00:00]} 17. f4 {[%clk 0:00:00]}  d5 {[%clk 0:00:00]} 18. cxd5 {[%clk 0:00:00]}  exd5 {[%clk 0:00:00]} 19. e5 {[%clk 0:00:00]}  Nfe8 {[%clk 0:00:00]} 20. Nf3 {[%clk 0:00:00]}  d4 {[%clk 0:00:00]} 21. Ne4 {[%clk 0:00:00]}  Bd5 {[%clk 0:00:00]} 22. Qc2 {[%clk 0:00:00]}  f5 {[%clk 0:00:00]} 23. exf6 {[%clk 0:00:00]}  Nxf6 {[%clk 0:00:00]} 24. Nxf6+ {[%clk 0:00:00]}  Bxf6 {[%clk 0:00:00]} 25. Ne5 {[%clk 0:00:00]}  Bxg2 {[%clk 0:00:00]} 26. Kxg2 {[%clk 0:00:00]}  Bxe5 {[%clk 0:00:00]} 27. fxe5 {[%clk 0:00:00]}  Qd5+ {[%clk 0:00:00]} 28. Kh3 {[%clk 0:00:00]}  Ne6 {[%clk 0:00:00]} 29. Bf4 {[%clk 0:00:00]}  g5 {[%clk 0:00:00]} 30. Bd2 {[%clk 0:00:00]}  Rxf1 {[%clk 0:00:00]} 31. Rxf1 {[%clk 0:00:00]}  Qxe5 {[%clk 0:00:00]} 32. Re1 {[%clk 0:00:00]}  Qf5+ {[%clk 0:00:00]} 33. Kg2 {[%clk 0:00:00]}  Rf8 {[%clk 0:00:00]} 34. Bc1 {[%clk 0:00:00]}  Nc7 {[%clk 0:00:00]} 35. Qa2+ {[%clk 0:00:00]}  Nd5 {[%clk 0:00:00]} 36. Qe2 {[%clk 0:00:00]}  g4 {[%clk 0:00:00]} 37. Qe6+ {[%clk 0:00:00]}  Qxe6 {[%clk 0:00:00]} 38. Rxe6 {[%clk 0:00:00]}  Rf6 {[%clk 0:00:00]} 39. Re8+ {[%clk 0:00:00]}  Kf7 {[%clk 0:00:00]} 40. Rd8 {[%clk 0:00:00]}  Nb4 {[%clk 0:00:00]} 41. Rd7+ {[%clk 0:00:00]}  Ke6 {[%clk 0:00:00]} 42. Rxh7 {[%clk 0:00:00]}  Nxd3 {[%clk 0:00:00]} 43. Bg5 {[%clk 0:00:00]}  Rg6 {[%clk 0:00:00]} 44. Bd2 {[%clk 0:00:00]}  c4 {[%clk 0:00:00]} 45. Rb7 {[%clk 0:00:00]}  Kd5 {[%clk 0:00:00]} 46. Rd7+ {[%clk 0:00:00]}  Rd6 {[%clk 0:00:00]} 47. Rg7 {[%clk 0:00:00]}  c3 {[%clk 0:00:00]} 48. Bf4 {[%clk 0:00:00]}  Nxf4+ {[%clk 0:00:00]} 49. gxf4 {[%clk 0:00:00]}  c2 {[%clk 0:00:00]} 50. Rc7 {[%clk 0:00:00]}  d3 {[%clk 0:00:00]} 51. Kf2 {[%clk 0:00:00]}  d2 {[%clk 0:00:00]} 0-1


[Site "https://www.chess.com"]

[Event "Titled Tuesday Blitz August 16 Late 2022"]
[White "Stanisz, Patryk"]
[Black "Proudian, Armen"]
[WhiteFideId "1123106"]
[BlackFideId "2130734"]
[WhiteElo "1833"]
[BlackElo "2380"]
[Result "0-1"]
[Round "06"]
[TimeControl "180+1"]
[Date "2022.08.18"]
[WhiteClock "0:00:00"]
[BlackClock "0:00:00"]

1. d4 {[%clk 0:00:00]}  Nf6 {[%clk 0:00:00]} 2. c3 {[%clk 0:00:00]}  d5 {[%clk 0:00:00]} 3. Nf3 {[%clk 0:00:00]}  c5 {[%clk 0:00:00]} 4. Bf4 {[%clk 0:00:00]}  cxd4 {[%clk 0:00:00]} 5. cxd4 {[%clk 0:00:00]}  Nc6 {[%clk 0:00:00]} 6. e3 {[%clk 0:00:00]}  Bf5 {[%clk 0:00:00]} 7. Nc3 {[%clk 0:00:00]}  e6 {[%clk 0:00:00]} 8. Bd3 {[%clk 0:00:00]}  Bxd3 {[%clk 0:00:00]} 9. Qxd3 {[%clk 0:00:00]}  Bb4 {[%clk 0:00:00]} 10. O-O {[%clk 0:00:00]}  Bxc3 {[%clk 0:00:00]} 11. bxc3 {[%clk 0:00:00]}  O-O {[%clk 0:00:00]} 12. c4 {[%clk 0:00:00]}  Na5 {[%clk 0:00:00]} 13. c5 {[%clk 0:00:00]}  Nc4 {[%clk 0:00:00]} 14. Ne5 {[%clk 0:00:00]}  Nxe5 {[%clk 0:00:00]} 15. Bxe5 {[%clk 0:00:00]}  Nd7 {[%clk 0:00:00]} 16. Bd6 {[%clk 0:00:00]}  Re8 {[%clk 0:00:00]} 17. Bg3 {[%clk 0:00:00]}  Rc8 {[%clk 0:00:00]} 18. Rfb1 {[%clk 0:00:00]}  b6 {[%clk 0:00:00]} 19. cxb6 {[%clk 0:00:00]}  Nxb6 {[%clk 0:00:00]} 20. Qa6 {[%clk 0:00:00]}  Qd7 {[%clk 0:00:00]} 21. h3 {[%clk 0:00:00]}  Rc4 {[%clk 0:00:00]} 22. a4 {[%clk 0:00:00]}  Rxa4 {[%clk 0:00:00]} 23. Rxa4 {[%clk 0:00:00]}  Qxa4 {[%clk 0:00:00]} 24. Qxa4 {[%clk 0:00:00]}  Nxa4 {[%clk 0:00:00]} 25. Ra1 {[%clk 0:00:00]}  Nc3 {[%clk 0:00:00]} 26. Rxa7 {[%clk 0:00:00]}  h5 {[%clk 0:00:00]} 27. Bh4 {[%clk 0:00:00]}  f6 {[%clk 0:00:00]} 28. Rc7 {[%clk 0:00:00]}  Ne4 {[%clk 0:00:00]} 29. f3 {[%clk 0:00:00]}  Nd2 {[%clk 0:00:00]} 30. Bg3 {[%clk 0:00:00]}  Nc4 {[%clk 0:00:00]} 31. e4 {[%clk 0:00:00]}  Rd8 {[%clk 0:00:00]} 32. exd5 {[%clk 0:00:00]}  exd5 {[%clk 0:00:00]} 33. Rb7 {[%clk 0:00:00]}  Ne3 {[%clk 0:00:00]} 34. Rb8 {[%clk 0:00:00]}  Rxb8 {[%clk 0:00:00]} 35. Bxb8 {[%clk 0:00:00]}  Nc2 {[%clk 0:00:00]} 36. Ba7 {[%clk 0:00:00]}  Kf7 {[%clk 0:00:00]} 37. Kf2 {[%clk 0:00:00]}  Ke6 {[%clk 0:00:00]} 38. Ke2 {[%clk 0:00:00]}  h4 {[%clk 0:00:00]} 39. Bc5 {[%clk 0:00:00]}  Na1 {[%clk 0:00:00]} 40. Kd3 {[%clk 0:00:00]}  Nb3 {[%clk 0:00:00]} 41. Bb4 {[%clk 0:00:00]}  Kf5 {[%clk 0:00:00]} 42. Be1 {[%clk 0:00:00]}  g5 {[%clk 0:00:00]} 43. g3 {[%clk 0:00:00]}  hxg3 {[%clk 0:00:00]} 44. Bxg3 {[%clk 0:00:00]}  Na5 {[%clk 0:00:00]} 45. h4 {[%clk 0:00:00]}  g4 {[%clk 0:00:00]} 46. fxg4+ {[%clk 0:00:00]}  Kxg4 {[%clk 0:00:00]} 47. Bf2 {[%clk 0:00:00]}  f5 {[%clk 0:00:00]} 48. Kc3 {[%clk 0:00:00]}  Nc6 {[%clk 0:00:00]} 49. Kb3 {[%clk 0:00:00]}  f4 {[%clk 0:00:00]} 50. Ka4 {[%clk 0:00:00]}  Kf3 {[%clk 0:00:00]} 51. Be1 {[%clk 0:00:00]}  Nxd4 {[%clk 0:00:00]} 52. h5 {[%clk 0:00:00]}  Nf5 {[%clk 0:00:00]} 53. Kb5 {[%clk 0:00:00]}  Ke2 {[%clk 0:00:00]} 54. Bb4 {[%clk 0:00:00]}  f3 {[%clk 0:00:00]} 55. h6 {[%clk 0:00:00]}  Nxh6 {[%clk 0:00:00]} 56. Bc5 {[%clk 0:00:00]}  Nf5 {[%clk 0:00:00]} 57. Kc6 {[%clk 0:00:00]}  d4 {[%clk 0:00:00]} 58. Kd5 {[%clk 0:00:00]}  f2 {[%clk 0:00:00]} 0-1


[Site "https://www.chess.com"]

[Event "Titled Tuesday Blitz August 16 Late 2022"]
[White "Tarnowska, Aleksandra"]
[Black "Oro, Luis"]
[WhiteFideId "1180967"]
[BlackFideId "104094"]
[WhiteElo "1700"]
[BlackElo "2255"]
[Result "0-1"]
[Round "06"]
[TimeControl "180+1"]
[Date "2022.08.18"]
[WhiteClock "0:00:00"]
[BlackClock "0:00:00"]

1. e4 {[%clk 0:00:00]}  c5 {[%clk 0:00:00]} 2. Nf3 {[%clk 0:00:00]}  d6 {[%clk 0:00:00]} 3. Bb5+ {[%clk 0:00:00]}  Nd7 {[%clk 0:00:00]} 4. O-O {[%clk 0:00:00]}  Nf6 {[%clk 0:00:00]} 5. Re1 {[%clk 0:00:00]}  g6 {[%clk 0:00:00]} 6. c3 {[%clk 0:00:00]}  Bg7 {[%clk 0:00:00]} 7. d4 {[%clk 0:00:00]}  cxd4 {[%clk 0:00:00]} 8. cxd4 {[%clk 0:00:00]}  a6 {[%clk 0:00:00]} 9. Bc4 {[%clk 0:00:00]}  b5 {[%clk 0:00:00]} 10. Bxf7+ {[%clk 0:00:00]}  Kxf7 {[%clk 0:00:00]} 11. Ng5+ {[%clk 0:00:00]}  Kg8 {[%clk 0:00:00]} 12. Qb3+ {[%clk 0:00:00]}  d5 {[%clk 0:00:00]} 13. e5 {[%clk 0:00:00]}  Nb6 {[%clk 0:00:00]} 14. exf6 {[%clk 0:00:00]}  Bxf6 {[%clk 0:00:00]} 15. Be3 {[%clk 0:00:00]}  Nc4 {[%clk 0:00:00]} 16. Nf3 {[%clk 0:00:00]}  Bf5 {[%clk 0:00:00]} 17. Nbd2 {[%clk 0:00:00]}  Kg7 {[%clk 0:00:00]} 18. Rad1 {[%clk 0:00:00]}  Rc8 {[%clk 0:00:00]} 19. Bf4 {[%clk 0:00:00]}  Nxd2 {[%clk 0:00:00]} 20. Rxd2 {[%clk 0:00:00]}  Be4 {[%clk 0:00:00]} 21. Be5 {[%clk 0:00:00]}  Qb6 {[%clk 0:00:00]} 22. Bxf6+ {[%clk 0:00:00]}  exf6 {[%clk 0:00:00]} 23. Qe3 {[%clk 0:00:00]}  Rhe8 {[%clk 0:00:00]} 24. Rde2 {[%clk 0:00:00]}  Qd6 {[%clk 0:00:00]} 25. h3 {[%clk 0:00:00]}  Rc7 {[%clk 0:00:00]} 26. Qd2 {[%clk 0:00:00]}  Rce7 {[%clk 0:00:00]} 27. Qc3 {[%clk 0:00:00]}  Bxf3 {[%clk 0:00:00]} 28. Qxf3 {[%clk 0:00:00]}  Rxe2 {[%clk 0:00:00]} 29. Rxe2 {[%clk 0:00:00]}  Rxe2 {[%clk 0:00:00]} 30. Qxe2 {[%clk 0:00:00]}  Qb4 {[%clk 0:00:00]} 31. Qe3 {[%clk 0:00:00]}  h5 {[%clk 0:00:00]} 32. Kh2 {[%clk 0:00:00]}  a5 {[%clk 0:00:00]} 33. Qe6 {[%clk 0:00:00]}  Qxd4 {[%clk 0:00:00]} 34. Qd7+ {[%clk 0:00:00]}  Kh6 {[%clk 0:00:00]} 35. Qxb5 {[%clk 0:00:00]}  Qe5+ {[%clk 0:00:00]} 36. Kg1 {[%clk 0:00:00]}  Qe1+ {[%clk 0:00:00]} 37. Kh2 {[%clk 0:00:00]}  Qxf2 {[%clk 0:00:00]} 38. Qxd5 {[%clk 0:00:00]}  Qb6 {[%clk 0:00:00]} 39. Qd2+ {[%clk 0:00:00]}  g5 {[%clk 0:00:00]} 40. Qc2 {[%clk 0:00:00]}  Qd6+ {[%clk 0:00:00]} 0-1


[Site "https://www.chess.com"]

[Event "Titled Tuesday Blitz August 16 Late 2022"]
[White "Tatarinov, Dmitry"]
[Black "Nozdrachev, Leonid"]
[WhiteFideId "24160067"]
[BlackFideId "24113433"]
[WhiteElo "2324"]
[BlackElo "2100"]
[Result "1/2-1/2"]
[Round "06"]
[TimeControl "180+1"]
[Date "2022.08.16"]
[WhiteClock "0:00:16"]
[BlackClock "0:00:03"]

1. c4 {[%clk 0:03:00]}  e5 {[%clk 0:02:58]} 2. Nc3 {[%clk 0:03:00]}  Bb4 {[%clk 0:02:58]} 3. Nd5 {[%clk 0:02:59]}  Be7 {[%clk 0:02:57]} 4. Nf3 {[%clk 0:02:57]}  d6 {[%clk 0:02:54]} 5. e3 {[%clk 0:02:56]}  Nf6 {[%clk 0:02:53]} 6. Nxf6+ {[%clk 0:02:51]}  Bxf6 {[%clk 0:02:52]} 7. Qc2 {[%clk 0:02:51]}  O-O {[%clk 0:02:51]} 8. Bd3 {[%clk 0:02:51]}  h6 {[%clk 0:02:47]} 9. h4 {[%clk 0:02:51]}  Nc6 {[%clk 0:02:44]} 10. a3 {[%clk 0:02:51]}  Re8 {[%clk 0:02:40]} 11. Be4 {[%clk 0:02:42]}  Be6 {[%clk 0:02:36]} 12. Ng5 {[%clk 0:02:32]}  hxg5 {[%clk 0:02:25]} 13. hxg5 {[%clk 0:02:21]}  Bxg5 {[%clk 0:02:23]} 14. b4 {[%clk 0:02:17]}  Bh6 {[%clk 0:02:15]} 15. Bb2 {[%clk 0:02:02]}  d5 {[%clk 0:02:15]} 16. cxd5 {[%clk 0:02:01]}  Bxd5 {[%clk 0:02:16]} 17. Bh7+ {[%clk 0:02:00]}  Kh8 {[%clk 0:02:08]} 18. b5 {[%clk 0:01:59]}  Nd4 {[%clk 0:01:57]} 19. exd4 {[%clk 0:01:43]}  exd4+ {[%clk 0:01:58]} 20. Kf1 {[%clk 0:01:40]}  Qg5 {[%clk 0:01:44]} 21. Rh2 {[%clk 0:01:37]}  Qf4 {[%clk 0:01:30]} 22. Kg1 {[%clk 0:01:34]}  Re2 {[%clk 0:01:26]} 23. Rf1 {[%clk 0:01:33]}  Rae8 {[%clk 0:01:24]} 24. Bd3 {[%clk 0:01:23]}  Re1 {[%clk 0:01:17]} 25. a4 {[%clk 0:01:11]}  Rxf1+ {[%clk 0:01:09]} 26. Bxf1 {[%clk 0:01:12]}  Re1 {[%clk 0:01:08]} 27. Rh3 {[%clk 0:01:12]}  Be4 {[%clk 0:00:48]} 28. Qc5 {[%clk 0:01:03]}  Qxd2 {[%clk 0:00:35]} 29. Qxd4 {[%clk 0:00:50]}  Qxd4 {[%clk 0:00:21]} 30. Bxd4 {[%clk 0:00:51]}  Kg8 {[%clk 0:00:20]} 31. Rc3 {[%clk 0:00:49]}  c6 {[%clk 0:00:16]} 32. f3 {[%clk 0:00:46]}  Bd5 {[%clk 0:00:16]} 33. Kf2 {[%clk 0:00:46]}  Rc1 {[%clk 0:00:15]} 34. Rxc1 {[%clk 0:00:43]}  Bxc1 {[%clk 0:00:16]} 35. Bxa7 {[%clk 0:00:43]}  cxb5 {[%clk 0:00:16]} 36. Bxb5 {[%clk 0:00:43]}  Ba3 {[%clk 0:00:14]} 37. Be3 {[%clk 0:00:36]}  f6 {[%clk 0:00:14]} 38. a5 {[%clk 0:00:33]}  Bb4 {[%clk 0:00:13]} 39. Bb6 {[%clk 0:00:33]}  Kf7 {[%clk 0:00:13]} 40. Ke3 {[%clk 0:00:34]}  Ke6 {[%clk 0:00:12]} 41. g4 {[%clk 0:00:33]}  g5 {[%clk 0:00:12]} 42. Bd3 {[%clk 0:00:33]}  Bd6 {[%clk 0:00:11]} 43. Be4 {[%clk 0:00:33]}  Be5 {[%clk 0:00:07]} 44. Kd3 {[%clk 0:00:30]}  Kd6 {[%clk 0:00:06]} 45. Bd8 {[%clk 0:00:26]}  Ke6 {[%clk 0:00:06]} 46. Bb6 {[%clk 0:00:21]}  Kd6 {[%clk 0:00:06]} 47. Be3 {[%clk 0:00:22]}  Ke6 {[%clk 0:00:06]} 48. Bc5 {[%clk 0:00:22]}  Bf4 {[%clk 0:00:04]} 49. Bd4 {[%clk 0:00:19]}  Be5 {[%clk 0:00:05]} 50. Kc3 {[%clk 0:00:12]}  Kd6 {[%clk 0:00:04]} 51. Bxe5+ {[%clk 0:00:10]}  Kxe5 {[%clk 0:00:02]} 52. Kb4 {[%clk 0:00:10]}  Bxe4 {[%clk 0:00:02]} 53. fxe4 {[%clk 0:00:11]}  Kxe4 {[%clk 0:00:01]} 54. Kb5 {[%clk 0:00:12]}  f5 {[%clk 0:00:02]} 55. gxf5 {[%clk 0:00:12]}  Kxf5 {[%clk 0:00:03]} 56. Kb6 {[%clk 0:00:12]}  g4 {[%clk 0:00:03]} 57. Kxb7 {[%clk 0:00:13]}  g3 {[%clk 0:00:04]} 58. a6 {[%clk 0:00:13]}  g2 {[%clk 0:00:05]} 59. a7 {[%clk 0:00:14]}  g1=Q {[%clk 0:00:04]} 60. a8=Q {[%clk 0:00:14]}  Qg2+ {[%clk 0:00:04]} 61. Kb8 {[%clk 0:00:15]}  Qxa8+ {[%clk 0:00:03]} 62. Kxa8 {[%clk 0:00:16]} 1/2-1/2


[Site "https://www.chess.com"]

[Event "Titled Tuesday Blitz August 16 Late 2022"]
[White "Urazayev, Arystanbek"]
[Black "Kruckenhauser, Arthur"]
[WhiteFideId "13709810"]
[BlackFideId "1642812"]
[WhiteElo "2441"]
[BlackElo "2218"]
[Result "1-0"]
[Round "06"]
[TimeControl "180+1"]
[Date "2022.08.16"]
[WhiteClock "0:00:12"]
[BlackClock "0:00:21"]

1. e4 {[%clk 0:03:00]}  e5 {[%clk 0:03:00]} 2. Nf3 {[%clk 0:03:01]}  Nc6 {[%clk 0:03:00]} 3. Bc4 {[%clk 0:03:01]}  Bc5 {[%clk 0:03:00]} 4. O-O {[%clk 0:03:00]}  Nf6 {[%clk 0:03:00]} 5. d3 {[%clk 0:03:01]}  O-O {[%clk 0:02:58]} 6. h3 {[%clk 0:03:01]}  h6 {[%clk 0:02:55]} 7. Nbd2 {[%clk 0:02:58]}  Re8 {[%clk 0:02:55]} 8. Re1 {[%clk 0:02:57]}  Bf8 {[%clk 0:02:54]} 9. a4 {[%clk 0:02:56]}  d6 {[%clk 0:02:43]} 10. c3 {[%clk 0:02:52]}  Be6 {[%clk 0:02:43]} 11. b4 {[%clk 0:02:51]}  Bxc4 {[%clk 0:02:41]} 12. Nxc4 {[%clk 0:02:47]}  a5 {[%clk 0:02:40]} 13. b5 {[%clk 0:02:46]}  Ne7 {[%clk 0:02:40]} 14. Ne3 {[%clk 0:02:42]}  g6 {[%clk 0:02:33]} 15. c4 {[%clk 0:02:38]}  Bg7 {[%clk 0:02:33]} 16. Bb2 {[%clk 0:02:31]}  Nc8 {[%clk 0:02:24]} 17. Nd5 {[%clk 0:02:30]}  Nxd5 {[%clk 0:02:24]} 18. cxd5 {[%clk 0:02:30]}  Rf8 {[%clk 0:02:22]} 19. d4 {[%clk 0:02:27]}  exd4 {[%clk 0:02:22]} 20. Bxd4 {[%clk 0:02:24]}  Re8 {[%clk 0:02:21]} 21. Rc1 {[%clk 0:02:21]}  Nb6 {[%clk 0:02:20]} 22. Bxg7 {[%clk 0:02:21]}  Kxg7 {[%clk 0:02:21]} 23. Qd4+ {[%clk 0:02:21]}  Kg8 {[%clk 0:02:21]} 24. e5 {[%clk 0:01:48]}  dxe5 {[%clk 0:02:20]} 25. Nxe5 {[%clk 0:01:46]}  Qxd5 {[%clk 0:02:16]} 26. Qa1 {[%clk 0:01:46]}  h5 {[%clk 0:01:28]} 27. Rxc7 {[%clk 0:01:44]}  Rac8 {[%clk 0:01:17]} 28. Rxc8 {[%clk 0:01:13]}  Nxc8 {[%clk 0:01:17]} 29. Kh2 {[%clk 0:00:53]}  Nb6 {[%clk 0:01:18]} 30. Re3 {[%clk 0:00:46]}  Qd6 {[%clk 0:01:16]} 31. f4 {[%clk 0:00:46]}  Nd5 {[%clk 0:01:11]} 32. Qd4 {[%clk 0:00:41]}  Qe6 {[%clk 0:00:55]} 33. Re1 {[%clk 0:00:24]}  Nb4 {[%clk 0:00:18]} 34. Nf3 {[%clk 0:00:21]}  Qc8 {[%clk 0:00:18]} 35. Rxe8+ {[%clk 0:00:17]}  Qxe8 {[%clk 0:00:19]} 36. Qb6 {[%clk 0:00:16]}  Qb8 {[%clk 0:00:18]} 37. Ne5 {[%clk 0:00:16]}  Nd5 {[%clk 0:00:16]} 38. Qd4 {[%clk 0:00:16]}  Qd6 {[%clk 0:00:16]} 39. h4 {[%clk 0:00:14]}  Qe6 {[%clk 0:00:16]} 40. Qc4 {[%clk 0:00:07]}  Nb6 {[%clk 0:00:14]} 41. Qd4 {[%clk 0:00:06]}  Qd5 {[%clk 0:00:14]} 42. Qxb6 {[%clk 0:00:05]}  Qe4 {[%clk 0:00:14]} 43. Qd8+ {[%clk 0:00:05]}  Kg7 {[%clk 0:00:15]} 44. Qg5 {[%clk 0:00:06]}  f6 {[%clk 0:00:14]} 45. Qxg6+ {[%clk 0:00:05]}  Qxg6 {[%clk 0:00:15]} 46. Nxg6 {[%clk 0:00:06]}  Kxg6 {[%clk 0:00:16]} 47. Kg3 {[%clk 0:00:07]}  Kf5 {[%clk 0:00:17]} 48. Kf3 {[%clk 0:00:08]}  Ke6 {[%clk 0:00:18]} 49. g4 {[%clk 0:00:08]}  f5 {[%clk 0:00:19]} 50. gxh5 {[%clk 0:00:08]}  Kf6 {[%clk 0:00:18]} 51. Ke3 {[%clk 0:00:09]}  Kg7 {[%clk 0:00:18]} 52. Kd4 {[%clk 0:00:10]}  Kh6 {[%clk 0:00:19]} 53. Ke5 {[%clk 0:00:11]}  Kxh5 {[%clk 0:00:20]} 54. Kxf5 {[%clk 0:00:12]}  Kxh4 {[%clk 0:00:21]} 55. Kg6 {[%clk 0:00:12]} 1-0


[Site "https://www.chess.com"]

[Event "Titled Tuesday Blitz August 16 Late 2022"]
[White "Urh, Zala"]
[Black "Kalavannan, Koby"]
[WhiteFideId "14611481"]
[BlackFideId "425753"]
[WhiteElo "2097"]
[BlackElo "1927"]
[Result "0-1"]
[Round "06"]
[TimeControl "180+1"]
[Date "2022.08.18"]
[WhiteClock "0:00:00"]
[BlackClock "0:00:00"]

1. e4 {[%clk 0:00:00]}  c5 {[%clk 0:00:00]} 2. Nf3 {[%clk 0:00:00]}  Nc6 {[%clk 0:00:00]} 3. d4 {[%clk 0:00:00]}  cxd4 {[%clk 0:00:00]} 4. Nxd4 {[%clk 0:00:00]}  g6 {[%clk 0:00:00]} 5. Nc3 {[%clk 0:00:00]}  Bg7 {[%clk 0:00:00]} 6. Be3 {[%clk 0:00:00]}  Nf6 {[%clk 0:00:00]} 7. Bc4 {[%clk 0:00:00]}  O-O {[%clk 0:00:00]} 8. Bb3 {[%clk 0:00:00]}  Re8 {[%clk 0:00:00]} 9. O-O {[%clk 0:00:00]}  d6 {[%clk 0:00:00]} 10. h3 {[%clk 0:00:00]}  Na5 {[%clk 0:00:00]} 11. Re1 {[%clk 0:00:00]}  b6 {[%clk 0:00:00]} 12. Bd5 {[%clk 0:00:00]}  Nxd5 {[%clk 0:00:00]} 13. exd5 {[%clk 0:00:00]}  Bb7 {[%clk 0:00:00]} 14. Bg5 {[%clk 0:00:00]}  Rc8 {[%clk 0:00:00]} 15. Qd2 {[%clk 0:00:00]}  Nc4 {[%clk 0:00:00]} 16. Qf4 {[%clk 0:00:00]}  Nxb2 {[%clk 0:00:00]} 17. Ncb5 {[%clk 0:00:00]}  Bxd5 {[%clk 0:00:00]} 18. Nxa7 {[%clk 0:00:00]}  Rc4 {[%clk 0:00:00]} 19. Nab5 {[%clk 0:00:00]}  Qd7 {[%clk 0:00:00]} 20. Qe3 {[%clk 0:00:00]}  e5 {[%clk 0:00:00]} 21. Rab1 {[%clk 0:00:00]}  Na4 {[%clk 0:00:00]} 22. Ne2 {[%clk 0:00:00]}  Re4 {[%clk 0:00:00]} 23. Qa3 {[%clk 0:00:00]}  Nc5 {[%clk 0:00:00]} 24. Nbc3 {[%clk 0:00:00]}  Ra4 {[%clk 0:00:00]} 25. Nxa4 {[%clk 0:00:00]}  Nxa4 {[%clk 0:00:00]} 26. Be3 {[%clk 0:00:00]}  Qc6 {[%clk 0:00:00]} 27. Rb4 {[%clk 0:00:00]}  Nc5 {[%clk 0:00:00]} 28. Reb1 {[%clk 0:00:00]}  Bxg2 {[%clk 0:00:00]} 29. Rxb6 {[%clk 0:00:00]}  Qf3 {[%clk 0:00:00]} 30. Rb8 {[%clk 0:00:00]}  Rf8 {[%clk 0:00:00]} 31. Bxc5 {[%clk 0:00:00]}  dxc5 {[%clk 0:00:00]} 32. Qxc5 {[%clk 0:00:00]}  Bxh3 {[%clk 0:00:00]} 33. Rxf8+ {[%clk 0:00:00]}  Bxf8 {[%clk 0:00:00]} 34. Qc6 {[%clk 0:00:00]}  Qxc6 {[%clk 0:00:00]} 35. Kh2 {[%clk 0:00:00]}  Qg2# {[%clk 0:00:00]} 0-1


[Site "https://www.chess.com"]